Cogmind - Beta 13 @@@ ROGUE MODE // 2024.05.04 @ 18:40:46 Player: Cwaftwer Result: Self-destructed Performance ------------- Evolutions (1) 500 Regions Visited (3) 600 Robots Destroyed (11) 55 Value Destroyed (232) 232 Prototype IDs (3) 60 Alien Tech Used (0) 0 Bonus (0) 0 TOTAL SCORE: 1447 Bonus ------- None Cogmind --------- Core Integrity 292/400 Matter 95/300 Energy 250/250 System Corruption 0% Temperature Cool (1) Movement Treading (160) Location -9/Materials Parts ------- > --- POWER (2) -------- Ion Engine > --- PROPULSION (2) --- Light Treads Light Treads > --- UTILITY (3) ------ Large Storage Unit Signal Interpreter Improved Terrain Scanner > --- WEAPON (2) ------- Assault Rifle > --- INVENTORY (15) --- Light Treads Aluminum Leg Aluminum Leg Wheel Wheel Compact Wheel Hover Unit Signal Interpreter Assault Rifle Light Assault Rifle Peak State ------------ > --- POWER ------------ Ion Engine > --- PROPULSION ------- Light Treads Light Treads > --- UTILITY ---------- Large Storage Unit Signal Interpreter Improved Terrain Scanner > --- WEAPON ----------- Assault Rifle Assault Rifle > --- INVENTORY -------- Light Treads Aluminum Leg Aluminum Leg Wheel Wheel Compact Wheel Hover Unit Signal Interpreter Assault Rifle Light Assault Rifle [Rating: 11] Favorites ----------- Power Ion Engine Engine Ion Engine Propulsion Light Treads Treads Light Treads Utility Improved Terrain Scanner Device Improved Terrain Scanner Storage Small Storage Unit Processor Signal Interpreter Weapon Assault Rifle Ballistic Gun Assault Rifle Launcher Grenade Launcher Build | -11 -10 -10 -9 ------- Run | Yrd Mat Min Mat Slots Evolved 2 | . . . 2 Power 1 | . . . 1 Propulsion . | . . . . Utility 1 | . . . 1 Weapon . | . . . . Parts Attached 14 | 7 2 . 5 Power 2 | 1 . . 1 Engine 2 | 1 . . 1 Core . | . . . . Reactor . | . . . . Propulsion 3 | 2 . . 1 Treads 3 | 2 . . 1 Leg . | . . . . Wheel . | . . . . Hover . | . . . . Flight . | . . . . Utility 5 | 2 2 . 1 Device 2 | 1 . . 1 Storage 2 | 1 1 . . Processor 1 | . 1 . . Hackware . | . . . . Protection . | . . . . Artifact . | . . . . Weapon 4 | 2 . . 2 Energy Gun . | . . . . Energy Cannon . | . . . . Ballistic Gun 3 | 2 . . 1 Ballistic Cannon . | . . . . Launcher 1 | . . . 1 Special Weapon . | . . . . Impact Weapon . | . . . . Slashing Weapon . | . . . . Piercing Weapon . | . . . . Special Melee Weapon . | . . . . Unidentified Prototypes . | . . . . Parts Lost 3 | . . . 3 Power 1 | . . . 1 Propulsion . | . . . . Utility . | . . . . Weapon 2 | . . . 2 Highest Loss Streak 2 | . . . 2 To Critical Strikes . | . . . . Average Slot Usage (%) 97 | . 100 100 85 Engine 13 | . 14 14 10 Treads 26 | . 28 28 22 Device 2 | . 4 . 8 Storage 13 | . 14 14 11 Processor 11 | . 9 14 11 Ballistic Gun 26 | . 28 28 21 Naked Turns . | . . . . Heaviest Build 30 | 15 30 29 30 Greatest Support 40 | 40 40 40 40 Greatest Overweight (x) 3 | 3 . . . Average Overweight (x) . | . . . . Largest Inventory Capacity 15 | 8 15 15 15 Average Capacity 9 | 7 14 15 15 Most Carried 11 | 8 10 11 11 Average Carried 7 | 6 9 10 9 Final Capacity 15 | 8 15 15 15 Final Carried 11 | 7 10 11 10 Class Distribution -------------------- 100% | Mutant Dominant Class ---------------- Mutant | -10/Materials Mutant | -10/Mines Mutant | -9/Materials Resources | -11 -10 -10 -9 ----------- Run | Yrd Mat Min Mat Matter Collected 328 | 272 . 34 22 Remotely . | . . . . Salvage Created 242 | 67 39 . 136 Parts 18 | 10 4 . 4 Haulers Intercepted . | . . . . Recyclers Shooed . | . . . . Parts Field Recycled . | . . . . Retrieved Matter . | . . . . Parts Self-Destructed . | . . . . Prevented . | . . . . Kills | -11 -10 -10 -9 ------- Run | Yrd Mat Min Mat Combat Hostiles Destroyed 7 | . 3 . 4 Guns 6 | . 3 . 3 AOE 1 | . . . 1 Classes Destroyed 7 | 2 1 . 4 Worker 1 | 1 . . . Tunneler 2 | 2 . . . Watcher 1 | . . . 1 Swarmer 3 | . 3 . . Grunt 1 | . . . 1 Duelist 1 | . . . 1 Sentry 2 | . . . 2 Best Kill Streak 3 | 1 3 . 3 Combat Bots Only 3 | . 3 . 3 Max Kills in Single Turn 1 | 1 1 . 1 Gunslinging . | . . . . Exploded 1 | . . . 1 Melee . | . . . . Uniques/NPCs Destroyed . | . . . . Combat | -11 -10 -10 -9 -------- Run | Yrd Mat Min Mat Hostile Shots Fired 73 | . 7 . 66 Missed 22 | . 2 . 20 Damage Taken 708 | . 39 . 669 Core 108 | . . . 108 Absorbed by Shields . | . . . . Core Remaining (%) 100 | 100 . 100 . Volleys Fired 30 | 8 6 . 16 Largest 2 | 2 2 . 2 Hottest 50 | 40 40 . 50 Shots Fired 60 | 16 12 . 32 Gun 56 | 16 12 . 28 Cannon . | . . . . Launcher 4 | . . . 4 Special . | . . . . Kinetic 56 | 16 12 . 28 Thermal . | . . . . Explosive 4 | . . . 4 Electromagnetic . | . . . . Robot Hit Streak 8 | 8 7 . 8 Robot Miss Streak 2 | 2 1 . 2 Penetration Max . | . . . . Secondary Targets 1 | . . . 1 Max Gunslinging Chain 1 | . . . 1 Shots Hit Robots 44 | 10 9 . 25 Core Hits 20 | 4 4 . 12 Critical Kills 1 | . . . 1 Critical Parts Destroyed . | . . . . Critical Strikes 1 | . . . 1 Destroy 1 | . . . 1 Melee Attacks . | . . . . Impact . | . . . . Slashing . | . . . . Piercing . | . . . . Sneak Attacks . | . . . . Combat Hostiles . | . . . . Follow-up Attacks . | . . . . Damage Inflicted 760 | 133 125 . 502 Guns 525 | 133 125 . 267 Cannons . | . . . . Explosions 235 | . . . 235 Melee . | . . . . Ramming . | . . . . Kinetic 525 | 133 125 . 267 Thermal . | . . . . Explosive 235 | . . . 235 Electromagnetic . | . . . . Impact . | . . . . Slashing . | . . . . Piercing . | . . . . Highest Corruption . | . . . . Average Corruption . | . . . . Corruption Purged . | . . . . Corruption Blocked . | . . . . Overload Shots . | . . . . Overflow Damage . | . . . . Projectiles . | . . . . Explosions . | . . . . Melee . | . . . . Knockbacks . | . . . . Impact . | . . . . Kinetic . | . . . . Secondary . | . . . . Self-Inflicted Damage . | . . . . Shots . | . . . . Rammed . | . . . . Targets Rammed . | . . . . Kicked . | . . . . Crushed . | . . . . Highest Temperature 17 | . . . 17 Average Temperature 6 | . . . 6 Received Heat Transfer 273 | . . . 273 Siege Activations . | . . . . Robots Corrupted . | . . . . Combat Hostiles . | . . . . Parts Fried . | . . . . Impact Corruptions . | . . . . Robots Melted . | . . . . Combat Hostiles . | . . . . Parts Melted . | . . . . Heat Transferred . | . . . . Parts Sabotaged . | . . . . Parts Stolen . | . . . . Parts Stripped . | . . . . Power Chain Reactions . | . . . . Alert | -11 -10 -10 -9 ------- Run | Yrd Mat Min Mat Peak Influence 161 | 10 109 . 161 Initial . | . . . . Average 6 | . 44 . 88 Maximum Alert Level . | . . . . Low Security (%) 100 | 100 100 100 100 Level 1 . | . . . . Level 2 . | . . . . Level 3 . | . . . . Level 4 . | . . . . Level 5 . | . . . . High Security . | . . . . Max Security . | . . . . Squads Dispatched 2 | . 1 . 1 Investigation 1 | . 1 . . Extermination . | . . . . Reinforcement 1 | . . . 1 Assault . | . . . . Garrison . | . . . . Intercept . | . . . . Searches Triggered . | . . . . Construction Impeded . | . . . . Haulers Reinforced . | . . . . Active Scanning Responses . | . . . . Cargo Convoy Interrupts . | . . . . Stealth | -11 -10 -10 -9 --------- Run | Yrd Mat Min Mat Distress Signals . | . . . . Communications Jammed . | . . . . Distress Signals . | . . . . Times Spotted 18 | . 7 . 11 Peak Tracking Total 5 | . 3 . 5 Tactical Retreats . | . . . . Traps | -11 -10 -10 -9 ------- Run | Yrd Mat Min Mat Traps Triggered . | . . . . Indirectly . | . . . . Trap Hack Attempts . | . . . . Triggered . | . . . . Disarmed . | . . . . Reprogrammed . | . . . . Reused . | . . . . Traps Extracted . | . . . . Installed . | . . . . Triggered . | . . . . Machines | -11 -10 -10 -9 ---------- Run | Yrd Mat Min Mat Machines Disabled . | . . . . Max in Single Turn . | . . . . Machines Repaired . | . . . . Machines Dismantled . | . . . . Machines Sabotaged . | . . . . Overloaded Fab Kills . | . . . . Hacking | -11 -10 -10 -9 --------- Run | Yrd Mat Min Mat Machines Accessed 8 | . 7 . 1 Terminals 7 | . 6 . 1 Fabricators . | . . . . Repair Stations . | . . . . Recycling Units 1 | . 1 . . Scanalyzers . | . . . . Garrison Access . | . . . . Total Hacks 21 | . 17 . 4 Successful 10 | . 7 . 3 Failed 11 | . 10 . 1 Catastrophic . | . . . . Database Lockouts . | . . . . Manual . | . . . . Terminals 17 | . 13 . 4 Fabricators . | . . . . Repair Stations . | . . . . Recycling Units 4 | . 4 . . Scanalyzers . | . . . . Garrison Access . | . . . . Terminal Hacks 9 | . 6 . 3 Record 1 | . . . 1 Robot Analysis 1 | . 1 . . Prototype ID Bank 2 | . 1 . 1 Alert Level 2 | . 2 . . Zone Layout 3 | . 2 . 1 Fabricator Hacks . | . . . . Repair Station Hacks . | . . . . Recycling Unit Hacks 1 | . 1 . . Report Inventory 1 | . 1 . . Scanalyzer . | . . . . Garrison Access Hacks . | . . . . Unauthorized Hacks . | . . . . Terminals . | . . . . Fabricators . | . . . . Repair Stations . | . . . . Recycling Units . | . . . . Scanalyzers . | . . . . Garrison Access . | . . . . Data Cores Recovered . | . . . . Used . | . . . . Hacking Detections 7 | . 6 . 1 Full Trace Events 2 | . 2 . . Feedback Events . | . . . . Feedback Blocked . | . . . . Robot Schematics Acquired . | . . . . Robots Built . | . . . . Authchips . | . . . . Time . | . . . . Total Robot Build Rating . | . . . . Part Schematics Acquired . | . . . . Parts Built . | . . . . Authchips . | . . . . Time . | . . . . Total Part Build Rating . | . . . . Parts Repaired . | . . . . Time . | . . . . Parts Recycled . | . . . . Recycled Matter . | . . . . Retrieved Matter . | . . . . Retrieved Components . | . . . . Parts Scanalyzed . | . . . . Part Schematics Acquired . | . . . . Parts Damaged . | . . . . Bothacking | -11 -10 -10 -9 ------------ Run | Yrd Mat Min Mat Used RIF Installer . | . . . . Robots Hacked . | . . . . Non-combat . | . . . . Combat . | . . . . Robot Hacks Applied . | . . . . Relay Couplers Released . | . . . . Fabnet Peak Effective % . | . . . . Robots Rewired . | . . . . Allies Hacked . | . . . . Hacks Repelled . | . . . . Allies | -11 -10 -10 -9 -------- Run | Yrd Mat Min Mat Total Allies . | . . . . Largest Group . | . . . . Highest-Rated Group . | . . . . Highest-Rated Ally . | . . . . Total Orders . | . . . . Ally Attacks . | . . . . Total Damage . | . . . . Kills . | . . . . Allies Corrupted . | . . . . Allies Melted . | . . . . Intel | -11 -10 -10 -9 ------- Run | Yrd Mat Min Mat Robot Analysis Total 1 | . 1 . . Derelict Logs Recovered 1 | . . 1 . Drone Launches . | . . . . Drone Recoveries . | . . . . Exploration | -11 -10 -10 -9 ------------- Run | Yrd Mat Min Mat Turns Passed 8765 | 6970 541 946 308 Spaces Moved 2085 | 1288 297 436 64 Core 5 | 5 . . . Treads 2080 | 1283 297 436 64 Legs . | . . . . Wheels . | . . . . Hover . | . . . . Flight . | . . . . Fastest Speed 50 | 50 160 160 160 Average Speed 159 | 159 160 160 160 Slowest Speed 200 | 200 160 160 160 Overloaded Moves . | . . . . Propulsion Burnouts . | . . . . Robots Hopped . | . . . . Cave-ins Triggered . | . . . . Exploration Rate (%) 68 | 118 50 97 9 Regions Visited 3 Branch Regions 1 Pre-discovered Areas . | . . . . Known Exits Taken 2 | . 1 1 . Unknown Exits Taken 1 | 1 . . . Scrap Searched 1 | . . 1 . Spaces Dug . | . . . . Terrain Destroyed 17 | . . . 17 Melee . | . . . . Projectile . | . . . . AOE 17 | . . . 17 Terrain Rammed . | . . . . Walls Destroyed . | . . . . Machines Disabled . | . . . . Actions | -11 -10 -10 -9 --------- Run | Yrd Mat Min Mat Total 7455 | 6184 350 685 236 Wait 5305 | 4866 41 249 149 Move 2082 | 1287 296 435 64 Hop . | . . . . Pick Up 22 | 15 4 1 2 Fast Attach . | . . . . Attach 10 | 7 . . 3 Detach . | . . . . Swap 4 | . 2 . 2 Drop 2 | 1 1 . . Fire 30 | 8 6 . 16 Melee . | . . . . Ram . | . . . . Kick . | . . . . Crush . | . . . . Escape Stasis . | . . . . Rewire . | . . . . Trap . | . . . . Miscellaneous . | . . . . Route ------- -11/Scrapyard -10/Materials (discovered 2 exits: *Mat / *Min) -10/Mines (discovered 2 exits: *Mat x2) -9/Materials (discovered 2 exits: Mat / Sto) History --------- Turn | Location | Event 18 | -11/Scrapyard | Discovered new exit (range 13) 6971 | -11/Scrapyard | Entered Materials 6972 | -10/Materials | Build established: Mutant 7145 | -10/Materials | Discovered new exit (range 6) 7334 | -10/Materials | Discovered new exit (range 11) 7348 | -10/Materials | Identified exit to Materials 7510 | -10/Materials | Identified exit to Mines 7512 | -10/Materials | Entered Mines 7881 | -10/Mines | Discovered exit to Materials (range 4) 7923 | -10/Mines | Learned 4 Materials zone layouts 8162 | -10/Mines | Discovered exit to Materials (range 13) 8260 | -10/Mines | Found a damaged Exp. Sensor Array with a note attached 8458 | -10/Mines | Entered Materials 8458 | -9/Materials | Evolved 2 slots: Power x1, Utility x1 8459 | -9/Materials | Identified exit to Materials 8459 | -9/Materials | Identified exit to Storage 8766 | -9/Materials | Self-destructed Last Messages --------------- T-07 Excavator is excavating. U-05 Engineer lays Concrete. T-07 Excavator is excavating. U-05 Engineer lays Concrete. T-07 Excavator is excavating. U-05 Engineer lays Concrete. U-05 Engineer builds a Wall. T-07 Excavator is excavating. U-05 Engineer lays Concrete. U-05 Engineer builds a Wall. U-05 Engineer builds a Door. O-16 Technician: "IFF HANDSHAKE FAILED. SECURING TERMINAL." Acquired 22 matter. ALERT: Hostiles spotted, dispatching reinforcements to Terminal M007. Acquired Hover Unit. L-31 Rogue suffers critical hit (Burn). L-31 Rogue destroyed. Assault Rifle destroyed. Map ----- +----------------------------------------------------+ | ????????????????????????????????????? | | ????????????????????????????????????? | | ????????????????????????????????????? | | ????????????????????????????????????? | | ????????????????????????????????????? | | ????????????????????????????????????? | | ????????????????????????????????????? | | ????????????????????????????????????? | | ????????????????????????????????????? | | ????????????????????????????????????? | | ????????????????????????? ????????? | | ????????????????????????? g #???????? | | ????????????????????????? #????? ?? | | ????????????????????????# ##??????? | | ??????????????????#????? #??????? | | ???????????????????????? #??????? | | ???????????????????????? #??????# | | ????????????????? ?????? ???????? | | ???????????+????#??????? #??????? | | ???????????? ?? ?#??????# #???????? | | ?????? +??? ? ?#??????# Y #????#??# | | ?????#?#?? ? ???#?????#?# #???????? | | ? ???????? ?????????#?### t##??????? | | ???#?#??? ??????#????#?#gg #???????? | | ??? ???? ??"??? ? ????#?#% #?#?????? | | ???????? ??????????????##@ ##??????? | | ??????????????? ???????# #????#?? | | ??????#??? ??"??????#### #??????? | | ??"?????#?#####????## #?#????? | | ???????#??# ##????# ## #??????? | | ?? ???????# #?#??# ## #?????#? | | ????####??# #??### ##########????? | | ??### # #??# # [ ##???? | | ? # #### # #????? | | ? = "" + + """ #????? | | ?" " "" # ## # """ #????? | | ??? """ T" # ## # """ #????? | | "????"" "" # ### ## #????? | | ?????""" ""#### ### # #######??? | | "" "" ###??# ### +% #??? | | """ """ #????# ### !#% """ #??? | | """ """ #????# ### #% """ #??? | | """ """ #?#### #### ## "" #??? | | " " ### ### ## !! #??? | | #?# ## !! #??? | | #?# ## #??? | | #?# ## #??? | | #"Y"####+### ###/############??? | | #"""# ## ### #????????????? | | ##### ## #?# " #????????????? | +----------------------------------------------------+ Best States ------------- Heat Dissipation 28 Energy Generation 10 Energy Capacity 250 Matter Stores 254 Matter Capacity 300 Sight Range 16 Terrain Scan Range 16 Terrain Scan Density 10 Evasion (%) 40 Recoil Reduction 2 Item Schematics ----------------- None Robot Schematics ------------------ None Fabricated ------------ Nothing Alien Tech Used ----------------- None Achievements -------------- None Challenges ------------ None Game ------ Seed WeaponsBiometalScrap Manual? 0 Play Time 00:19:34 Cumulative 37.4 hours Start 2024.05.04 @ 18:17:30 End 2024.05.04 @ 18:40:46 Sessions 1 Manual Loads 0 Difficulty Rogue Special Mode None Game No. 60 Rogue 59 Adventurer 1 Explorer 0 Win Type - Total 0 Types 0/0/0/0/0/0/0/0/0 Lore% 36 Gallery% 38 Achievement% 31 Wizard Run 0 Options --------- Layout 1 ASCII 0 Keyboard 0 Movement Mouse Keybinds 0 Fullscreen 1 Font 24/Smallcaps Map View 50x40 Zoom Use 0% Tactical HUD 0 Map Filters NONE Filters NONE Steam 1 RUN: ed237b94-5411-4cc5-a9da-2bbfef47b848